bitfinex/quotes_ETHUSD_20251119
["timestamp","ask_amount","ask_price","bid_price","bid_amount"]
[1763573959680,0.184,2911.2,2909.3,0.405504]
[1763573960021,0.184,2911.2,2909.3,0.863304]
[1763573960193,8.22873326,2911.3,2909.3,0.863304]
[1763573960373,1.09099264,2911.2,2909.4,0.4578]
[1763573960567,0.90699264,2910.7,2909.4,0.4578]
[1763573960874,8.22873326,2910.3,2909.0,6.87519446]
[1763573961068,8.22873326,2910.3,2908.9,0.4578]
[1763573961267,0.93197259,2911.1,2908.9,10.77097181]
[1763573961268,0.049,2910.5,2908.9,10.77097181]
[1763573961512,8.22873326,2911.1,2909.0,0.94136871]
[1763573961804,0.184,2911.6,2909.5,0.1878]
[1763573961805,4.184,2911.4,2909.5,0.1878]
[1763573962204,4.184,2911.4,2909.6,0.6456]
[1763573962205,0.90699264,2911.3,2909.6,0.6456]
[1763573962408,4.0,2911.4,2909.7,0.405504]
[1763573962609,4.0,2911.4,2909.7,0.863304]
[1763573963112,4.0,2911.4,2909.8,0.863304]
[1763573963631,4.0,2911.4,2910.2,0.405504]
[1763573963809,4.0,2911.4,2911.3,0.1878]
[1763573964024,0.002,2911.8,2911.4,0.405504]
[1763573964306,0.002,2911.8,2911.3,0.1878]
[1763573964520,0.002,2911.8,2911.3,0.5038]
[1763573964726,1e-08,2913.7,2911.3,0.87326447]
[1763573964905,0.002,2914.6,2912.8,8.22873326]
[1763573965073,0.002,2914.6,2913.0,0.405504]
[1763573965277,0.002,2914.6,2914.5,0.1242]
[1763573965577,0.002,2914.6,2914.5,3.55532026]
[1763573965777,0.002,2914.6,2914.5,0.1242]
[1763573966001,0.002,2914.6,2914.5,3.55532026]
[1763573966208,0.002,2914.6,2914.5,4.25397753]
[1763573966513,0.002,2914.6,2914.5,0.82285727]
[1763573966677,0.002,2914.6,2913.6,0.405504]
[1763573966678,0.002,2914.6,2914.2,0.1242]
[1763573967075,0.002,2914.6,2914.2,0.4362]
[1763573967326,0.002,2914.6,2914.2,0.1242]
[1763573967504,0.002,2914.6,2913.8,0.1242]
[1763573967705,0.002,2914.6,2913.8,3.55611721]
[1763573967900,0.002,2914.6,2913.5,3.43225738]
[1763573968227,8.22873326,2914.3,2912.9,0.1242]
[1763573968456,8.22873326,2913.3,2911.4,3.43470117]
[1763573968594,0.90699264,2913.6,2911.5,0.36225012]
[1763573968797,0.90699264,2913.0,2911.5,0.36225012]
[1763573969027,0.1957,2913.2,2911.5,0.36225012]
[1763573969333,0.1957,2913.2,2911.6,0.312]
[1763573969640,0.1957,2913.2,2911.7,10.30325925]
[1763573969795,0.6627,2913.2,2911.8,0.71824526]
[1763573969997,0.6627,2913.2,2911.7,6.8688395]
[1763573970193,0.467,2913.1,2911.3,0.1878]
[1763573970424,0.467,2913.1,2911.3,10.80446901]
[1763573970735,0.90699264,2913.0,2911.3,7.05757279]
[1763573971043,0.90699264,2913.0,2911.0,0.6838156]
[1763573971044,0.405504,2912.9,2910.0,0.1242]
[1763573971205,0.405504,2911.9,2910.0,3.56052264]
[1763573971550,0.90699264,2911.5,2909.5,0.1242]
[1763573971838,0.6627,2911.8,2909.5,6.99820398]
[1763573971839,0.90699264,2911.1,2909.5,6.99820398]
[1763573972079,0.467,2911.4,2909.6,0.03436898]
[1763573972196,0.467,2911.3,2909.5,6.99814907]
[1763573972541,0.90699264,2911.0,2909.5,3.56121666]
[1763573972697,1.37399264,2911.0,2909.5,6.99823332]
[1763573972893,0.467,2911.0,2909.5,6.99823332]
[1763573973639,0.467,2911.0,2909.5,10.43524998]
[1763573974004,0.467,2911.0,2909.6,0.3112]
[1763573974207,0.467,2911.0,2909.5,6.99823332]
[1763573974597,1.37399264,2911.0,2909.5,0.1242]
[1763573974793,1.37399264,2911.0,2909.5,6.99823332]
[1763573975108,1.37399264,2911.0,2909.6,0.69992333]
[1763573975307,0.467,2911.7,2909.8,0.405504]
[1763573975630,0.467,2911.7,2910.0,0.405504]
[1763573976743,0.467,2911.7,2910.1,0.3112]
[1763573976939,9.1357259,2911.5,2909.6,0.69992333]
[1763573977098,8.22873326,2911.0,2909.4,0.001]
[1763573977295,1.56969264,2910.9,2909.4,0.001]
[1763573977531,0.90699264,2910.4,2909.4,0.001]
[1763573978022,1.10269264,2910.9,2909.4,0.001]
[1763573978206,0.4903,2910.3,2909.4,0.001]
[1763573978612,0.4903,2911.2,2909.6,0.405504]
[1763573979103,0.4903,2911.2,2909.6,0.716704]
[1763573979692,0.4903,2911.2,2909.7,10.31034126]
[1763573979844,0.4903,2911.2,2909.7,6.87356084]
[1763573980039,0.4903,2911.2,2909.7,10.31034126]
[1763573980246,0.4903,2911.6,2909.8,0.75107062]
[1763573980479,0.4903,2911.5,2909.8,1.62369664]
[1763573981096,0.1917,2912.4,2909.9,0.3112]
[1763573981267,0.4903,2911.6,2909.9,0.3112]
[1763573981707,0.4903,2911.6,2910.1,10.30892409]
[1763573982008,0.4903,2911.6,2910.2,0.405504]
[1763573982691,0.4903,2911.6,2910.1,3.43630803]
[1763573982862,0.4903,2911.6,2910.1,6.87261606]
[1763573983066,0.4903,2911.6,2909.9,0.3112]
[1763573983067,0.90699264,2911.3,2909.5,3.43701666]
[1763573983272,0.90699264,2911.3,2909.5,6.87403332]
[1763573983483,0.4903,2911.2,2909.6,0.68750333]
[1763573983693,0.4903,2911.2,2909.7,3.43678042]
[1763573983879,0.4903,2911.2,2909.7,7.18476084]
[1763573984280,0.4903,2911.2,2909.7,3.43678042]
[1763573984508,0.4903,2911.2,2909.7,6.87356084]
[1763573984670,0.4903,2911.2,2909.8,0.39299205]
[1763573985664,0.4903,2911.2,2909.9,6.87308842]
[1763573985878,0.1957,2911.8,2910.0,0.43986826]
[1763573986075,0.4903,2912.2,2910.1,0.3112]
[1763573986321,0.4903,2912.2,2910.2,0.405504]
[1763573986680,0.4903,2912.2,2910.4,0.405504]
[1763573986886,0.4903,2913.0,2910.6,1.31249664]
[1763573987139,0.4903,2913.0,2910.8,0.405504]
[1763573987481,0.4903,2913.0,2910.9,0.3117]
[1763573987719,0.4903,2913.0,2911.2,0.405504]
[1763573988231,0.4903,2913.0,2911.0,13.74098248]
[1763573988232,0.90699264,2912.8,2911.0,6.87049124]
[1763573988432,0.002,2911.7,2911.1,0.39299205]
[1763573988719,0.4903,2913.7,2911.5,8.22873326]
[1763573988943,0.002,2914.6,2912.9,0.90699264]
[1763573989085,0.002,2914.6,2913.7,0.529704]
[1763573989514,0.002,2914.6,2913.7,0.841404]
[1763573989723,0.002,2914.6,2914.0,0.405504]
[1763573990017,0.002,2914.6,2914.0,1.40470733]
[1763573990524,0.002,2914.6,2914.0,0.68750333]
[1763573990728,0.002,2914.6,2913.6,3.83757633]
[1763573990729,0.002,2914.6,2913.3,0.717204]
[1763573990964,0.002,2914.6,2913.5,0.405504]
[1763573991438,0.002,2914.6,2913.6,0.3117]
[1763573991612,0.002,2914.6,2913.6,0.29741]
[1763573991816,0.002,2914.6,2913.7,6.86412464]
[1763573992011,0.002,2914.6,2913.8,0.405504]
[1763573992246,0.002,2914.6,2913.8,1.31249664]
[1763573992948,0.682,2916.0,2914.4,1.31249664]
[1763573993111,0.4903,2916.6,2914.4,1.43649664]
[1763573993313,0.682,2917.2,2914.9,1.31249664]
[1763573993726,0.4903,2917.1,2915.4,0.405504]
[1763573993917,0.1917,2917.2,2915.4,0.405504]
[1763573994314,0.4903,2917.1,2915.4,0.405504]
[1763573994701,0.90699264,2917.0,2914.8,6.86153422]
[1763573994921,0.96260259,2916.9,2914.9,1.31249664]
[1763573995125,0.1917,2917.2,2915.1,0.405504]
[1763573995339,0.4903,2916.8,2915.1,0.405504]
[1763573995547,0.4903,2916.8,2915.0,0.405504]
[1763573995715,0.4903,2916.8,2915.2,1.31249664]
[1763573995903,8.22873326,2916.7,2915.1,3.43041405]
[1763573996108,1.77889597,2916.6,2914.4,10.29368375]
[1763573996344,2.26919597,2916.6,2914.5,0.405504]
[1763573996555,2.26919597,2916.6,2914.4,13.72492174]
[1763573996556,8.22873326,2916.2,2914.4,3.43120777]
[1763573996844,0.90699264,2916.1,2914.4,3.43120777]
[1763573997009,1.39729264,2916.1,2914.4,3.43120777]
[1763573997209,1.39729264,2916.1,2913.6,3.43211388]
[1763573997210,0.90699264,2915.6,2913.6,6.86436024]
[1763573997641,0.90699264,2915.1,2913.6,3.43218012]
[1763573997808,1.087504,2915.5,2913.2,3.55681054]
[1763573997809,0.90699264,2915.4,2913.3,10.29760065]
[1763573998010,1.39729264,2915.4,2913.3,10.29760065]
[1763573998232,0.4903,2915.3,2913.3,13.7301342]
[1763573998444,1.47207259,2915.3,2913.4,0.2955]
[1763573998653,0.1917,2915.5,2913.4,1.32649264]
[1763573998965,0.4903,2915.4,2913.5,0.2955]
[1763573999328,0.4903,2915.4,2913.6,0.405504]
[1763573999850,0.4903,2915.4,2913.7,6.86412464]
[1763574000052,0.4903,2915.4,2913.7,10.29618696]
[1763574000253,8.22873326,2914.8,2912.8,0.1079]
[1763574000428,0.1917,2913.8,2912.0,10.30219779]
[1763574000630,8.22873326,2913.7,2912.0,6.86813186]
[1763574000975,6.80705612,2913.2,2910.2,6.80705612]
[1763574001276,0.90699264,2913.6,2909.5,0.051]
[1763574001277,0.90699264,2912.6,2910.1,0.2955]
[1763574001476,0.90699264,2912.1,2910.1,3.43623074]
[1763574001646,0.4903,2912.5,2910.2,0.32986189]
[1763574001848,0.4903,2912.5,2910.3,10.30821564]
[1763574002050,0.4903,2912.5,2910.3,17.1803594]
[1763574002383,0.1917,2913.1,2910.7,0.1]
[1763574002541,0.1917,2913.1,2910.8,0.701004]
[1763574002742,0.4903,2913.2,2911.0,7.21256012]
[1763574003084,0.682,2914.6,2913.1,0.1875]
[1763574003295,0.4903,2913.9,2912.2,0.405504]
[1763574003452,0.4903,2913.9,2912.0,0.2955]
[1763574003639,0.4903,2913.9,2912.1,0.405504]
[1763574003841,0.4903,2913.9,2912.3,0.90699264]
[1763574004554,0.4903,2913.9,2911.7,3.43441975]
[1763574004879,0.90699264,2913.5,2911.7,3.43441975]
[1763574005046,0.90699264,2913.5,2911.0,0.124]
[1763574005047,0.90699264,2913.0,2911.0,3.43524562]
[1763574005238,1.67839752,2913.0,2911.1,0.36227456]
[1763574005441,6.80705612,2912.1,2909.8,0.2955]
[1763574005818,0.90699264,2911.5,2909.4,3.4381348]
[1763574006008,6.80705612,2911.1,2909.4,3.4381348]
[1763574006174,0.682,2911.4,2909.5,0.68873801]
[1763574006175,6.80705612,2910.6,2909.5,0.68873801]
[1763574006387,0.90699264,2910.5,2909.5,0.68873801]
[1763574006696,6.80705612,2910.1,2909.5,0.001]
[1763574006900,0.1917,2909.6,2909.5,0.001]
[1763574007102,0.1917,2909.6,2906.5,10.62119275]
[1763574007103,0.90699264,2909.5,2906.5,10.62119275]
[1763574007262,1.19607888,2909.4,2909.2,0.001]
[1763574007469,0.4903,2909.4,2909.2,0.001]
[1763574007666,0.4903,2910.0,2909.2,0.001]
[1763574008094,0.1846,2909.9,2909.2,0.001]
[1763574008573,0.1917,2910.5,2909.2,0.001]
[1763574008765,0.1846,2911.0,2909.2,0.001]
[1763574008965,0.1846,2911.0,2909.2,0.406504]
[1763574009263,0.1846,2911.0,2909.4,0.405504]
[1763574009667,0.4614,2911.6,2909.6,0.405504]
[1763574009891,6.80705612,2912.0,2909.8,0.405504]
[1763574009892,0.4614,2911.3,2909.8,0.405504]
[1763574010067,0.4614,2911.3,2909.9,0.38422844]
[1763574010474,0.4614,2911.3,2910.0,0.03436426]
[1763574010776,0.4614,2911.3,2909.9,0.38422844]
[1763574010987,0.4614,2911.9,2910.0,0.705004]
[1763574011200,1.36839264,2911.8,2910.0,0.705004]
[1763574011512,0.4614,2912.3,2910.1,0.705004]
[1763574011717,1.18824561,2912.3,2910.1,0.705004]
[1763574012012,0.90699264,2911.8,2910.0,3.43642611]
[1763574012193,0.4614,2912.2,2910.1,1.31249664]
[1763574012506,0.4614,2913.2,2911.0,1.31249664]
[1763574012703,7.26845612,2913.2,2911.2,0.405504]
[1763574012890,7.26845612,2913.2,2911.1,0.69626694]
[1763574012891,7.26845612,2913.2,2910.4,0.505504]
[1763574013063,0.4614,2913.1,2910.4,0.405504]
[1763574013265,0.4614,2913.1,2910.6,0.405504]
[1763574013463,1.36839264,2913.1,2910.6,0.405504]
[1763574013680,0.81754488,2913.0,2910.8,0.405504]
[1763574013881,6.80705612,2912.7,2911.0,0.90699264]
[1763574014079,1.27894488,2913.0,2911.0,0.90699264]
[1763574014080,0.4614,2912.9,2911.0,0.90699264]
[1763574014302,0.4614,2912.9,2911.1,0.705004]
[1763574014612,0.1846,2913.3,2911.1,0.705004]
[1763574014613,0.4614,2912.8,2911.1,0.705004]
[1763574014914,0.4614,2912.8,2911.0,0.90699264]
[1763574015573,0.90699264,2912.6,2910.9,6.87072726]
[1763574015963,0.4614,2912.5,2910.8,6.8709633]
[1763574016164,0.4614,2912.5,2910.7,3.62306973]
[1763574016479,0.90699264,2912.1,2909.9,0.2995]
[1763574016679,0.86699264,2912.1,2910.0,10.30927833]
[1763574016883,1.22880488,2912.0,2910.1,0.94135572]
[1763574017239,1.22880488,2912.0,2910.0,10.30927833]
[1763574017240,0.4614,2912.0,2910.2,0.2995]
[1763574017363,0.4614,2912.0,2910.3,0.405504]
[1763574017568,0.4614,2912.0,2910.3,0.705004]
[1763574017812,0.4614,2912.0,2910.4,0.2995]
[1763574018111,0.4614,2912.0,2910.5,3.43583576]
[1763574018276,0.4614,2912.0,2910.0,6.87285222]
[1763574018277,6.80705612,2911.7,2910.0,6.87285222]
[1763574018465,7.48776173,2911.7,2910.1,0.68728522]
[1763574018807,0.4614,2911.6,2910.1,1.59427786]
[1763574019178,0.4614,2911.6,2910.2,0.405504]
[1763574019507,0.1846,2911.5,2910.1,1.59427786]
[1763574019813,0.90699264,2912.0,2910.3,0.405504]
[1763574019814,0.1846,2911.9,2910.3,0.405504]
[1763574020109,0.4614,2911.7,2910.4,10.30786146]
[1763574020263,0.4614,2912.4,2910.6,0.405504]
[1763574020464,0.4614,2913.2,2910.8,1.31249664]
[1763574020712,0.4614,2913.2,2910.7,6.80705612]
[1763574020713,0.4614,2913.7,2911.3,1.31249664]
[1763574020877,0.4614,2913.2,2911.3,0.529504]
[1763574021097,0.4614,2913.7,2911.5,0.405504]
[1763574021498,0.4614,2913.7,2911.7,0.405504]
[1763574022016,0.4614,2913.7,2912.1,1.31249664]
[1763574022324,0.4614,2913.7,2912.3,0.405504]
[1763574023011,6.99165612,2914.5,2912.3,0.405504]
[1763574023215,0.646,2914.5,2912.5,0.405504]
[1763574023413,0.002,2914.6,2912.9,0.405504]
[1763574023617,0.002,2914.6,2913.1,0.405504]
[1763574024107,0.002,2914.6,2913.3,1.31249664]
[1763574024358,0.002,2914.6,2913.5,0.405504]
[1763574024688,0.002,2914.6,2913.4,0.69271016]
[1763574024689,0.002,2914.6,2913.7,0.405504]
[1763574025916,0.002,2914.6,2913.9,0.405504]
[1763574026122,0.002,2914.6,2914.1,0.405504]
[1763574026524,0.002,2914.6,2914.1,0.705004]
[1763574026729,0.002,2914.6,2914.3,0.405504]
[1763574026931,0.002,2914.6,2914.2,0.68728522]
[1763574027236,0.002,2914.6,2913.0,6.80705612]
[1763574027237,0.002,2914.6,2913.3,4.12960182]
[1763574027394,0.1991,2914.5,2913.0,0.2995]
[1763574027599,0.002,2914.6,2913.1,10.41020763]
[1763574027793,0.002,2914.6,2913.2,1.20649264]
[1763574028034,0.002,2914.6,2913.3,13.7301342]
[1763574028219,0.002,2914.6,2913.5,0.405504]
[1763574028427,0.002,2914.6,2913.7,0.405504]
[1763574028916,0.002,2914.6,2913.8,0.2995]
[1763574029496,0.002,2914.6,2913.5,0.405504]
[1763574029803,0.002,2914.6,2913.3,10.59710065]
[1763574029804,0.1991,2914.5,2913.3,6.8650671]
[1763574030003,0.1991,2914.5,2913.3,3.43253355]
[1763574030203,0.6814,2914.5,2913.2,3.43265137]
[1763574030434,0.6814,2914.5,2912.1,6.14359773]
[1763574030435,0.6814,2914.5,2912.6,6.86669988]
[1763574030636,0.4823,2914.4,2912.6,10.30005839]
[1763574030793,0.4823,2914.4,2912.6,6.86669988]
[1763574031000,0.4823,2914.4,2912.7,1.90435263]
[1763574031229,0.1991,2914.5,2912.8,0.2995]
[1763574031433,0.6814,2914.5,2912.8,0.2995]
[1763574032098,0.002,2914.6,2913.1,0.405504]
[1763574032492,0.002,2914.6,2913.2,0.2995]
[1763574032697,0.6814,2914.5,2913.0,0.90699264]
[1763574032927,0.6814,2914.5,2913.2,0.405504]
[1763574033435,0.002,2914.6,2913.2,0.405504]
[1763574033641,0.002,2914.6,2913.4,0.405504]
[1763574033793,0.002,2914.6,2913.6,0.405504]
[1763574033999,0.002,2914.6,2913.8,0.405504]
[1763574034306,0.002,2914.6,2914.0,1.31249664]
[1763574034507,0.002,2914.6,2914.2,0.405504]
[1763574035352,0.4823,2916.6,2914.6,0.405504]
[1763574035631,0.4823,2917.5,2915.9,1.31249664]
[1763574036068,0.4823,2917.5,2916.0,0.1855]
[1763574036240,0.4823,2917.5,2916.2,1.31249664]
[1763574036437,0.4823,2917.8,2916.2,1.31249664]
[1763574037341,0.4823,2917.8,2916.4,0.405504]
[1763574037499,0.6834,2918.3,2916.6,0.405504]
[1763574037905,0.6834,2918.3,2916.9,0.90699264]
[1763574038103,0.002,2918.3,2917.2,1.31249664]
[1763574038313,0.002,2918.3,2917.4,1.31249664]
[1763574038517,0.002,2918.3,2917.9,1.31249664]
[1763574038730,0.1945,2920.2,2918.4,1.31249664]
[1763574038996,0.1945,2920.2,2918.6,0.405504]
[1763574039218,0.6523,2920.2,2918.6,0.528504]
[1763574039521,0.6523,2920.2,2918.5,0.2915]
[1763574039522,0.4578,2920.1,2917.9,0.2915]
[1763574039702,0.4578,2920.1,2918.0,0.405504]
[1763574039925,1.20393561,2920.1,2918.0,0.405504]
[1763574040124,1.20393561,2920.1,2918.4,0.90699264]
[1763574040125,0.4578,2920.1,2918.4,0.90699264]
[1763574040366,0.4578,2920.0,2918.4,0.90699264]
[1763574040526,0.4578,2920.0,2918.5,0.405504]
[1763574040724,0.1965,2920.3,2918.5,0.697004]
[1763574040928,0.4578,2920.2,2918.5,0.405504]
[1763574041128,0.4578,2920.2,2918.1,0.90699264]
[1763574041375,0.4578,2920.2,2918.4,0.405504]
[1763574041863,0.4578,2920.2,2918.3,0.123]
[1763574042162,0.4578,2920.2,2918.4,3.42653508]
[1763574042373,0.4578,2920.2,2918.4,6.85307016]
[1763574042579,6.80705612,2920.0,2917.1,3.42796199]
[1763574042787,0.90699264,2919.4,2917.2,0.3427962]
[1763574042967,0.90699264,2919.4,2915.2,3.43023444]
[1763574042968,0.90699264,2918.9,2916.6,0.123]
[1763574043447,0.405504,2919.4,2916.4,6.98076984]
[1763574043448,6.80705612,2918.5,2916.4,6.98076984]
[1763574043648,6.80705612,2918.5,2916.4,0.123]
[1763574043844,1.36479264,2918.4,2916.4,0.123]
[1763574044041,1.36479264,2918.4,2916.3,3.4290025]
[1763574044240,1.27498488,2918.3,2916.5,6.8575347]
[1763574044752,0.4578,2918.2,2916.4,0.34290025]
[1763574044940,0.4578,2918.2,2916.5,0.03428767]
[1763574045275,0.4578,2918.2,2916.3,10.2870075]
[1763574045276,0.4578,2918.2,2916.3,6.858005]
[1763574045485,0.4578,2918.2,2916.3,10.2870075]
[1763574045643,0.4578,2918.2,2916.4,1.19849264]
[1763574045845,0.4578,2918.2,2916.5,0.405504]
[1763574046240,0.4578,2918.2,2916.5,3.42876735]
[1763574046442,0.4578,2918.2,2916.2,0.123]
[1763574046443,0.4578,2918.2,2916.3,3.4289065]
[1763574046684,0.4578,2918.2,2915.7,0.2915]
[1763574046685,0.90699264,2917.6,2915.2,6.86059274]
[1763574046888,6.80705612,2917.7,2915.2,6.98359274]
[1763574046889,6.80705612,2917.2,2915.2,6.98359274]
[1763574047089,1.58769825,2917.1,2915.3,0.69845927]
[1763574047410,0.405504,2917.0,2915.3,0.69845927]
[1763574047620,0.1945,2915.4,2914.6,0.001]
[1763574047965,0.4578,2915.3,2914.6,0.001]
[1763574049665,0.90699264,2915.1,2914.6,0.001]
[1763574050068,3.88798944,2915.3,2912.6,6.86671702]
[1763574050069,0.90699264,2914.6,2912.6,6.86671702]
[1763574050264,0.77140488,2914.5,2912.6,10.30007553]
[1763574050479,1.22920488,2914.5,2912.7,0.90699264]
[1763574050679,0.4578,2914.4,2912.6,10.30007553]
[1763574051179,0.4578,2914.4,2912.6,6.86671702]
[1763574051374,0.4578,2914.4,2912.6,10.59357553]
[1763574051591,0.4578,2914.4,2912.6,10.30007553]
[1763574051788,0.4578,2914.4,2912.7,0.405504]
[1763574052167,0.4578,2914.9,2913.1,1.31249664]
[1763574052567,0.6523,2915.4,2913.3,0.405504]
[1763574054309,7.26485612,2915.3,2913.0,3.43288705]
[1763574054506,0.90699264,2915.2,2913.0,3.43288705]
[1763574054673,1.36479264,2915.2,2913.1,0.699004]
[1763574054890,0.4578,2915.1,2913.1,1.60599664]
[1763574055091,0.4578,2915.1,2913.3,0.405504]
[1763574055633,0.1945,2915.4,2913.5,0.405504]
[1763574055827,0.4578,2915.3,2913.5,0.405504]
[1763574056035,7.26485612,2915.3,2913.0,0.90699264]
[1763574056326,7.26485612,2915.3,2912.9,13.7320196]
[1763574056327,1.36479264,2915.2,2913.3,0.405504]
[1763574056531,0.81718488,2915.1,2913.3,0.405504]
[1763574056837,0.81718488,2915.1,2913.2,6.86530274]
[1763574056838,1.27498488,2915.1,2913.2,6.86530274]
[1763574056998,0.4578,2915.0,2913.2,6.86530274]
[1763574057392,0.4578,2915.0,2913.2,10.29795411]
[1763574058436,0.4578,2915.0,2913.2,6.86530274]
[1763574058735,0.4578,2915.0,2913.3,0.68653027]
[1763574059094,1.36479264,2915.0,2913.3,0.68653027]
[1763574059440,0.4578,2914.9,2913.3,0.68653027]
[1763574060724,0.1945,2913.4,2912.5,0.001]
[1763574061206,0.4578,2913.3,2912.5,0.001]
[1763574061414,0.1945,2913.4,2912.5,0.001]
[1763574061809,0.4578,2913.3,2912.5,0.001]
[1763574062524,3.89036397,2913.3,2912.5,0.001]
[1763574062723,1.31547904,2913.2,2912.5,0.001]
[1763574062910,0.4578,2913.1,2912.5,0.001]
[1763574063394,0.4578,2914.8,2912.6,0.2935]
[1763574063608,0.4578,2914.8,2912.7,0.5628364]
[1763574063798,0.6523,2914.6,2912.7,0.5628364]
[1763574064110,0.002,2915.0,2913.1,1.31249664]
[1763574064312,0.002,2915.0,2913.3,0.90699264]
[1763574064313,0.4578,2914.9,2913.3,0.90699264]
[1763574064534,0.4578,2914.9,2913.0,0.90699264]
[1763574064739,0.90699264,2914.8,2912.8,3.60945566]
[1763574064914,0.405504,2914.7,2912.8,7.04257842]
[1763574065238,0.863304,2914.7,2912.9,0.70425784]
[1763574065539,0.4578,2914.7,2912.9,0.70425784]
[1763574065706,0.4578,2914.6,2912.8,3.43312276]
[1763574065916,0.1945,2912.9,2912.5,0.001]
[1763574066144,0.4578,2912.8,2912.5,0.001]
[1763574066608,0.4578,2912.8,2912.3,0.001]
[1763574067023,0.90699264,2912.7,2912.3,0.001]
[1763574067210,1.30033293,2912.8,2912.3,0.001]
[1763574067409,1.36479264,2912.7,2912.3,0.001]
[1763574067614,0.4578,2912.7,2912.3,0.001]
[1763574067825,0.4596,2912.6,2912.3,0.001]
[1763574068029,0.4596,2912.6,2912.0,0.001]
[1763574068335,0.4596,2912.6,2911.0,0.001]
[1763574068336,0.90699264,2912.1,2911.0,0.001]
[1763574068511,0.405504,2912.5,2911.0,0.001]
[1763574068512,0.1828,2911.4,2911.0,0.001]
[1763574069136,0.6424,2911.8,2911.0,0.001]
[1763574069438,0.4596,2912.3,2911.0,0.406504]
[1763574069642,0.4596,2912.7,2911.0,0.406504]
[1763574070157,1.999,2911.3,2911.0,0.406504]
[1763574070456,0.90699264,2913.6,2911.0,0.406504]
[1763574070457,0.4596,2914.1,2912.6,0.1815]
[1763574070658,0.6541,2914.7,2912.7,0.4398364]
[1763574070854,0.6541,2914.7,2912.9,0.405504]
[1763574071030,0.4596,2914.6,2912.9,0.405504]
[1763574071230,0.1945,2914.7,2912.6,0.1815]
[1763574071231,0.1945,2914.7,2913.0,0.2955]
[1763574071436,0.4596,2914.6,2912.7,0.405504]
[1763574072233,0.4596,2914.6,2912.9,0.405504]
[1763574072433,0.1945,2914.7,2913.2,0.405504]
[1763574072634,0.6541,2914.7,2913.1,0.90699264]
[1763574072836,0.6541,2914.7,2913.0,6.8657741]
[1763574073130,0.4596,2914.6,2913.0,6.8657741]
[1763574073351,0.4596,2914.6,2912.8,3.43312276]
[1763574073698,0.90699264,2914.2,2912.2,10.3014424]
[1763574073867,0.90699264,2914.2,2912.3,0.90699264]
[1763574074038,0.4596,2914.1,2912.3,0.90699264]
[1763574074439,0.4596,2914.1,2912.4,13.73437712]
[1763574074749,0.4596,2914.1,2912.5,0.90699264]
[1763574075452,0.4596,2914.1,2912.6,0.701004]
[1763574075648,0.002,2915.0,2913.2,8.20778571]
[1763574075862,1.07282826,2917.3,2914.9,0.1139]
[1763574075863,1e-08,2915.3,2914.9,0.1139]
[1763574076159,0.1828,2917.3,2915.3,1.31249664]
[1763574076459,0.1828,2917.5,2915.7,0.90699264]
[1763574076762,0.4596,2917.2,2915.2,1.31249664]
[1763574076947,8.66738571,2917.2,2915.2,1.31249664]
[1763574077148,0.86673857,2917.1,2915.2,1.31249664]
[1763574077336,0.1828,2917.5,2915.3,0.2955]
[1763574077527,0.1828,2917.7,2915.4,0.405504]
[1763574077719,0.4596,2917.6,2915.7,0.405504]
[1763574077921,0.1828,2918.2,2915.9,0.405504]
[1763574078159,0.4596,2918.1,2916.0,0.2955]
[1763574078360,0.4596,2918.8,2916.5,0.405504]
[1763574078664,0.4596,2918.8,2916.6,0.701004]
[1763574079168,0.1828,2918.9,2916.8,0.405504]
[1763574079324,0.6424,2918.9,2916.8,0.405504]
[1763574079665,0.1828,2919.1,2917.0,0.405504]
[1763574079834,0.4596,2919.0,2917.0,0.405504]
[1763574080035,0.4596,2919.0,2917.2,0.405504]
[1763574080447,0.4596,2919.0,2917.1,0.2955]
[1763574080448,0.002,2917.4,2917.3,4.74032374]
[1763574080952,0.4596,2919.6,2917.3,4.74032374]
[1763574080953,0.002,2917.7,2917.4,1.31249664]
[1763574081156,0.1828,2919.9,2917.7,1.31249664]
[1763574081359,0.6424,2919.9,2917.7,0.405504]
[1763574081666,0.002,2918.0,2917.7,0.405504]
[1763574081882,0.002,2918.0,2917.9,0.405504]
[1763574082030,0.1828,2919.9,2917.9,0.405504]
[1763574082233,0.4596,2919.5,2917.9,0.405504]
[1763574082427,0.1828,2919.9,2918.3,0.405504]
[1763574082739,0.002,2920.1,2918.3,0.405504]
[1763574082955,0.002,2920.1,2918.5,0.405504]
[1763574083744,0.002,2920.1,2918.7,0.405504]
[1763574083948,0.002,2920.1,2919.1,1.31249664]
[1763574084239,0.002,2920.1,2919.3,0.405504]
[1763574084562,0.002,2920.1,2918.7,1.20249264]
[1763574084730,0.4595,2920.0,2918.0,3.42700479]
[1763574084930,0.4595,2920.0,2918.1,0.90699264]
[1763574085131,0.4595,2920.0,2918.1,1.20249264]
[1763574085372,0.405504,2919.9,2918.0,3.42700479]
[1763574085668,0.4595,2920.0,2918.1,0.90699264]
[1763574085872,0.4595,2919.9,2918.1,0.90699264]
[1763574086032,0.002,2920.1,2918.2,0.4185]
[1763574086232,0.002,2920.1,2918.4,0.405504]
[1763574086441,0.4595,2920.0,2918.5,0.90699264]
[1763574086871,0.002,2920.1,2918.5,0.90699264]
[1763574087078,0.002,2920.1,2918.6,0.2955]
[1763574087261,0.002,2920.1,2918.7,0.405504]
[1763574087782,0.002,2920.1,2918.6,0.405504]
[1763574087995,0.002,2920.1,2918.5,0.90699264]
[1763574088276,0.002,2920.1,2918.6,0.701004]
[1763574088432,0.002,2920.1,2918.8,1.31249664]
[1763574089074,0.002,2920.1,2919.5,8.20778571]
[1763574089370,0.002,2920.1,2919.6,0.123]
[1763574089678,0.002,2920.1,2918.8,1.57972031]
[1763574089679,0.002,2920.1,2919.3,0.405504]